{"text_format":"1","workbook":"xlsx","n_sheets":7,"sheets":["Leggimi","Acqua","Scivolamento","Crollo","Valanga","Cockpit","Tabella"],"not_rendered":{"charts":29,"images":3,"macros":1,"external_links":0,"defined_names":1,"comments":0,"pivot_tables":0},"unopened":[],"bounds":{"document_bytes":16777216,"sheet_cells":100000,"rows_first":2000,"rows_last":500,"rows_between":2000,"halvings":0,"cell_chars":16384,"cell_head_chars":4096},"cells_cut":0,"cells_raw":0,"read":"whole","date_system":"1900"}

{"sheet":"Leggimi","index":0,"n_rows":0,"n_cols":0,"rows_kept":0,"cut":false,"hidden":false,"merged":[]}

{"sheet":"Acqua","index":1,"n_rows":147,"n_cols":28,"rows_kept":147,"cut":false,"hidden":false,"merged":[]}
["Processo principale Acqua"]
[]
["BENE DA PROTEGGERE",null,null,null,null,"ESPOSIZIONE (in aree di pericolo e indicative di pericolo)",null,null,null,null,null,null,null,null,"ESPOSIZIONE (per scenario di base)",null,null,null,null,null,"RISCHIO individuale",null,"RISCHIO collettivo"]
[]
[null,null,null,null,null,null,null,null,null,null,null,null,null,null,null,null,null,null,null,null,"Rischio di decesso individuale",null,"Rischio in termini monetari"]
[]
[null,null,null,null,null,"totale",null,"per area",null,"per grado di pericolo",null,null,null,null,"per probabilità di occorrenza e intensità",null,null,null,null,null,"Numero di persone r > 10-5",null,"Entità del danno Awj par scenario di base [CHF]",null,null,null,null,"Rischio [CHF/a]"]
[]
[null,null,null,null,null,null,null,null,null,"rosso","blu","giallo","giallo-bianco",null,null,"30 anni","100 anni","300 anni","estremo",null,null,null,"30 anni","100 anni","300 anni","estremo"]
[null,"Popolazione",null,null,null,null,null,"in area di pericolo",null,"[n.]","[n.]","[n.]","[n.]",null,"debole",0,0,0,0,null,0,null,0,0,0,0,null,0]
[null,"residente",null,null,null,null,null,0,null,0,0,0,0,null,"media",0,0,0,0]
[null,"totale [n.]",null,null,null,"totale [n.]",null,null,null,null,null,null,null,null,"forte",0,0,0,0]
[null,0,null,null,null,0,null,"in area indicativa di pericolo"]
[null,null,null,null,null,null,null,0]
[]
["Persone",null,null,null,null,null,null,null,null,"rosso","blu","giallo","giallo-bianco",null,null,"30 anni","100 anni","300 anni","estremo",null,null,null,"30 anni","100 anni","300 anni","estremo"]
[null,"Occupati",null,null,null,null,null,"in area di pericolo",null,"[n.]","[n.]","[n.]","[n.]",null,"debole",0,0,0,0,null,0,null,0,0,0,0,null,0]
[null,null,null,null,null,null,null,0,null,0,0,0,0,null,"media",0,0,0,0]
[null,"totale [n.]",null,null,null,"totale [n.]",null,null,null,null,null,null,null,null,"forte",0,0,0,0]
[null,0,null,null,null,0,null,"in area indicativa di pericolo"]
[null,null,null,null,null,null,null,0]
[]
[null,null,null,null,null,null,null,null,null,"rosso","blu","giallo","giallo-bianco",null,null,"30 anni","100 anni","300 anni","estremo",null,null,null,"30 anni","100 anni","300 anni","estremo"]
["Beni","Edifici",null,"Abitazione",null,null,null,"in area di pericolo",null,"[m2]","[m2]","[m2]","[m2]",null,"debole",0,0,0,0,null,null,null,0,0,0,0,null,0]
["importanti","totale [m2]",null,"totale [m2]",null,"totale [m2]",null,0,null,0,0,0,0,null,"media",0,0,0,0]
[null,0,null,0,null,0,null,0,null,null,null,null,null,null,"forte",0,0,0,0]
[null,"totale [n.]",null,"totale [n.]",null,"totale [n.]",null,"in area indicativa di pericolo"]
[null,0,null,0,null,0,null,0]
[null,null,null,null,null,null,null,0]
[null,null,null,null,null,null,null,null,null,"rosso","blu","giallo","giallo-bianco",null,null,"30 anni","100 anni","300 anni","estremo",null,null,null,"30 anni","100 anni","300 anni","estremo"]
[null,null,null,"Lavoro",null,null,null,"in area di pericolo",null,"[m2]","[m2]","[m2]","[m2]",null,"debole",0,0,0,0,null,null,null,0,0,0,0,null,0]
[null,null,null,"totale [m2]",null,"totale [m2]",null,0,null,0,0,0,0,null,"media",0,0,0,0]
[null,null,null,0,null,0,null,0,null,null,null,null,null,null,"forte",0,0,0,0]
[null,null,null,"totale [n.]",null,"totale [n.]",null,"in area indicativa di pericolo"]
[null,null,null,0,null,0,null,0]
[null,null,null,null,null,null,null,0]
[null,null,null,null,null,null,null,null,null,"rosso","blu","giallo","giallo-bianco",null,null,"30 anni","100 anni","300 anni","estremo",null,null,null,"30 anni","100 anni","300 anni","estremo"]
[null,null,null,"Misto",null,null,null,"in area di pericolo",null,"[m2]","[m2]","[m2]","[m2]",null,"debole",0,0,0,0,null,null,null,0,0,0,0,null,0]
[null,null,null,"totale [m2]",null,"totale [m2]",null,0,null,0,0,0,0,null,"media",0,0,0,0]
[null,null,null,0,null,0,null,0,null,null,null,null,null,null,"forte",0,0,0,0]
[null,null,null,"totale [n.]",null,"totale [n.]",null,"in area indicativa di pericolo"]
[null,null,null,0,null,0,null,0]
[null,null,null,null,null,null,null,0]
[null,null,null,null,null,null,null,null,null,"rosso","blu","giallo","giallo-bianco",null,null,"30 anni","100 anni","300 anni","estremo",null,null,null,"30 anni","100 anni","300 anni","estremo"]
[null,null,null,"Altro",null,null,null,"in area di pericolo",null,"[m2]","[m2]","[m2]","[m2]",null,"debole",0,0,0,0,null,null,null,0,0,0,0,null,0]
[null,null,null,"totale [m2]",null,"totale [m2]",null,0,null,0,0,0,0,null,"media",0,0,0,0]
[null,null,null,0,null,0,null,0,null,null,null,null,null,null,"forte",0,0,0,0]
[null,null,null,"totale [n.]",null,"totale [n.]",null,"in area indicativa di pericolo"]
[null,null,null,0,null,0,null,0]
[null,null,null,null,null,null,null,0]
[]
[null,"Strada",null,"Proprietario",null,null,null,"in area di pericolo"]
[null,"totale [m]",null,"Confederazione",null,null,null,0]
[null,0,null,"totale [m]",null,"totale [m]"]
[null,null,null,0,null,0,null,"in area indicativa di pericolo"]
[null,null,null,null,null,null,null,0]
[]
[]
[null,null,null,"Proprietario",null,null,null,"in area di pericolo"]
[null,null,null,"Cantone",null,null,null,0]
[null,null,null,"totale [m]",null,"totale [m]"]
[null,null,null,0,null,0,null,"in area indicativa di pericolo"]
[null,null,null,null,null,null,null,0]
[]
[]
[null,null,null,"Proprietario",null,null,null,"in area di pericolo"]
[null,null,null,"Commune",null,null,null,0]
[null,null,null,"totale [m]",null,"totale [m]"]
[null,null,null,0,null,0,null,"in area indicativa di pericolo"]
[null,null,null,null,null,null,null,0]
[]
[]
[null,"Ferrovia",null,"Scarto",null,null,null,"in area di pericolo"]
[null,"totale [m]",null,"normale",null,null,null,0]
[null,null,null,"totale [m]",null,"totale [m]"]
[null,0,null,0,null,0,null,"in area indicativa di pericolo"]
[null,null,null,null,null,null,null,0]
[]
[]
[null,null,null,"Scarto",null,null,null,"in area di pericolo"]
[null,null,null,"ridotto",null,null,null,0]
[null,null,null,"totale [m]",null,"totale [m]"]
[null,null,null,0,null,0,null,"in area indicativa di pericolo"]
[null,null,null,null,null,null,null,0]
[]
[]
[null,null,null,"Scarto ridotto",null,null,null,"in area di pericolo"]
[null,null,null,"con normale",null,null,null,0]
[null,null,null,null,null,"totale [m]"]
[null,null,null,"totale [m]",null,0,null,"in area indicativa di pericolo"]
[null,null,null,0,null,null,null,0]
[]
[]
[null,"Beni culturali",null,null,null,null,null,"in area di pericolo"]
[null,"totale [n.]",null,null,null,null,null,0]
[null,null,null,null,null,"totale [n.]"]
[null,0,null,null,null,0,null,"in area indicativa di pericolo"]
[null,null,null,null,null,null,null,0]
[]
[]
[null,"Zone edificabili",null,"Abitazione",null,null,null,"in area di pericolo"]
[null,"totale [m2]",null,"totale [m2]",null,null,null,0]
[null,null,null,0,null,"totale [m2]"]
[null,0,null,null,null,0,null,"in area indicativa di pericolo"]
[null,null,null,null,null,null,null,0]
[]
[]
[null,null,null,"Lavoro",null,null,null,"in area di pericolo"]
[null,null,null,"totale [m2]",null,null,null,0]
[null,null,null,0,null,"totale [m2]"]
[null,null,null,null,null,0,null,"in area indicativa di pericolo"]
[null,null,null,null,null,null,null,0]
[]
[]
[null,null,null,"Misto",null,null,null,"in area di pericolo"]
[null,null,null,"totale [m2]",null,null,null,0]
[null,null,null,0,null,"totale [m2]"]
[null,null,null,null,null,0,null,"in area indicativa di pericolo"]
[null,null,null,null,null,null,null,0]
[]
[]
[null,null,null,"Altro",null,null,null,"in area di pericolo"]
[null,null,null,"totale [m2]",null,null,null,0]
[null,null,null,0,null,"totale [m2]"]
[null,null,null,null,null,0,null,"in area indicativa di pericolo"]
[null,null,null,null,null,null,null,0]
[]
[]
[null,"Risorse",null,null,null,null,null,"in area di pericolo"]
[null,"vitali",null,null,null,null,null,0]
[null,"Suolo",null,null,null,"totale [m2]"]
[null,"totale [m2]",null,null,null,0,null,"in area indicativa di pericolo"]
[null,0,null,null,null,null,null,0]
[]
[]
[null,"Risorse",null,null,null,null,null,"in area di pericolo"]
[null,"vitali",null,null,null,null,null,0]
[null,"Acqua",null,null,null,"totale [m2]"]
[null,"totale [m2]",null,null,null,0,null,"in area indicativa di pericolo"]
[null,0,null,null,null,null,null,0]
[]
[]
[null,"Oggetti",null,null,null,null,null,"in area di pericolo"]
[null,"speciali",null,null,null,null,null,0]
[null,"totale [n.]",null,null,null,"totale [n.]"]
[null,0,null,null,null,0,null,"in area indicativa di pericolo"]
[null,null,null,null,null,null,null,0]

{"sheet":"Scivolamento","index":2,"n_rows":147,"n_cols":28,"rows_kept":147,"cut":false,"hidden":false,"merged":[]}
["Processo principale Scivolamento"]
[]
["BENE DA PROTEGGERE",null,null,null,null,"ESPOSIZIONE (in aree di pericolo e indicative di pericolo)",null,null,null,null,null,null,null,null,"ESPOSIZIONE (per scenario di base)",null,null,null,null,null,"RISCHIO individuale",null,"RISCHIO collettivo"]
[]
[null,null,null,null,null,null,null,null,null,null,null,null,null,null,null,null,null,null,null,null,"Rischio di decesso individuale",null,"Rischio in termini monetari"]
[]
[null,null,null,null,null,"totale",null,"per area",null,"per grado di pericolo",null,null,null,null,"per probabilità di occorrenza e intensità",null,null,null,null,null,"Numero di persone r > 10-5",null,"Entità del danno Awj par scenario di base [CHF]",null,null,null,null,"Rischio [CHF/a]"]
[]
[null,null,null,null,null,null,null,null,null,"rosso","blu","giallo","giallo-bianco",null,null,"30 anni","100 anni","300 anni","estremo",null,null,null,"30 anni","100 anni","300 anni","estremo"]
[null,"Popolazione",null,null,null,null,null,"in area di pericolo",null,"[n.]","[n.]","[n.]","[n.]",null,"debole",0,0,0,0,null,0,null,0,0,0,0,null,0]
[null,"residente",null,null,null,null,null,0,null,0,0,0,0,null,"media",0,0,0,0]
[null,"totale [n.]",null,null,null,"totale [n.]",null,null,null,null,null,null,null,null,"forte",0,0,0,0]
[null,0,null,null,null,0,null,"in area indicativa di pericolo"]
[null,null,null,null,null,null,null,0]
[]
["Persone",null,null,null,null,null,null,null,null,"rosso","blu","giallo","giallo-bianco",null,null,"30 anni","100 anni","300 anni","estremo",null,null,null,"30 anni","100 anni","300 anni","estremo"]
[null,"Occupati",null,null,null,null,null,"in area di pericolo",null,"[n.]","[n.]","[n.]","[n.]",null,"debole",0,0,0,0,null,0,null,0,0,0,0,null,0]
[null,null,null,null,null,null,null,0,null,0,0,0,0,null,"media",0,0,0,0]
[null,"totale [n.]",null,null,null,"totale [n.]",null,null,null,null,null,null,null,null,"forte",0,0,0,0]
[null,0,null,null,null,0,null,"in area indicativa di pericolo"]
[null,null,null,null,null,null,null,0]
[]
[null,null,null,null,null,null,null,null,null,"rosso","blu","giallo","giallo-bianco",null,null,"30 anni","100 anni","300 anni","estremo",null,null,null,"30 anni","100 anni","300 anni","estremo"]
["Beni","Edifici",null,"Abitazione",null,null,null,"in area di pericolo",null,"[m2]","[m2]","[m2]","[m2]",null,"debole",0,0,0,0,null,null,null,0,0,0,0,null,0]
["importanti","totale [m2]",null,"totale [m2]",null,"totale [m2]",null,0,null,0,0,0,0,null,"media",0,0,0,0]
[null,0,null,0,null,0,null,0,null,null,null,null,null,null,"forte",0,0,0,0]
[null,"totale [n.]",null,"totale [n.]",null,"totale [n.]",null,"in area indicativa di pericolo"]
[null,0,null,0,null,0,null,0]
[null,null,null,null,null,null,null,0]
[null,null,null,null,null,null,null,null,null,"rosso","blu","giallo","giallo-bianco",null,null,"30 anni","100 anni","300 anni","estremo",null,null,null,"30 anni","100 anni","300 anni","estremo"]
[null,null,null,"Lavoro",null,null,null,"in area di pericolo",null,"[m2]","[m2]","[m2]","[m2]",null,"debole",0,0,0,0,null,null,null,0,0,0,0,null,0]
[null,null,null,"totale [m2]",null,"totale [m2]",null,0,null,0,0,0,0,null,"media",0,0,0,0]
[null,null,null,0,null,0,null,0,null,null,null,null,null,null,"forte",0,0,0,0]
[null,null,null,"totale [n.]",null,"totale [n.]",null,"in area indicativa di pericolo"]
[null,null,null,0,null,0,null,0]
[null,null,null,null,null,null,null,0]
[null,null,null,null,null,null,null,null,null,"rosso","blu","giallo","giallo-bianco",null,null,"30 anni","100 anni","300 anni","estremo",null,null,null,"30 anni","100 anni","300 anni","estremo"]
[null,null,null,"Misto",null,null,null,"in area di pericolo",null,"[m2]","[m2]","[m2]","[m2]",null,"debole",0,0,0,0,null,null,null,0,0,0,0,null,0]
[null,null,null,"totale [m2]",null,"totale [m2]",null,0,null,0,0,0,0,null,"media",0,0,0,0]
[null,null,null,0,null,0,null,0,null,null,null,null,null,null,"forte",0,0,0,0]
[null,null,null,"totale [n.]",null,"totale [n.]",null,"in area indicativa di pericolo"]
[null,null,null,0,null,0,null,0]
[null,null,null,null,null,null,null,0]
[null,null,null,null,null,null,null,null,null,"rosso","blu","giallo","giallo-bianco",null,null,"30 anni","100 anni","300 anni","estremo",null,null,null,"30 anni","100 anni","300 anni","estremo"]
[null,null,null,"Altro",null,null,null,"in area di pericolo",null,"[m2]","[m2]","[m2]","[m2]",null,"debole",0,0,0,0,null,null,null,0,0,0,0,null,0]
[null,null,null,"totale [m2]",null,"totale [m2]",null,0,null,0,0,0,0,null,"media",0,0,0,0]
[null,null,null,0,null,0,null,0,null,null,null,null,null,null,"forte",0,0,0,0]
[null,null,null,"totale [n.]",null,"totale [n.]",null,"in area indicativa di pericolo"]
[null,null,null,0,null,0,null,0]
[null,null,null,null,null,null,null,0]
[]
[null,"Strada",null,"Proprietario",null,null,null,"in area di pericolo"]
[null,"totale [m]",null,"Confederazione",null,null,null,0]
[null,0,null,"totale [m]",null,"totale [m]"]
[null,null,null,0,null,0,null,"in area indicativa di pericolo"]
[null,null,null,null,null,null,null,0]
[]
[]
[null,null,null,"Proprietario",null,null,null,"in area di pericolo"]
[null,null,null,"Cantone",null,null,null,0]
[null,null,null,"totale [m]",null,"totale [m]"]
[null,null,null,0,null,0,null,"in area indicativa di pericolo"]
[null,null,null,null,null,null,null,0]
[]
[]
[null,null,null,"Proprietario",null,null,null,"in area di pericolo"]
[null,null,null,"Commune",null,null,null,0]
[null,null,null,"totale [m]",null,"totale [m]"]
[null,null,null,0,null,0,null,"in area indicativa di pericolo"]
[null,null,null,null,null,null,null,0]
[]
[]
[null,"Ferrovia",null,"Scarto",null,null,null,"in area di pericolo"]
[null,"totale [m]",null,"normale",null,null,null,0]
[null,null,null,"totale [m]",null,"totale [m]"]
[null,0,null,0,null,0,null,"in area indicativa di pericolo"]
[null,null,null,null,null,null,null,0]
[]
[]
[null,null,null,"Scarto",null,null,null,"in area di pericolo"]
[null,null,null,"ridotto",null,null,null,0]
[null,null,null,"totale [m]",null,"totale [m]"]
[null,null,null,0,null,0,null,"in area indicativa di pericolo"]
[null,null,null,null,null,null,null,0]
[]
[]
[null,null,null,"Scarto ridotto",null,null,null,"in area di pericolo"]
[null,null,null,"con normale",null,null,null,0]
[null,null,null,null,null,"totale [m]"]
[null,null,null,"totale [m]",null,0,null,"in area indicativa di pericolo"]
[null,null,null,0,null,null,null,0]
[]
[]
[null,"Beni culturali",null,null,null,null,null,"in area di pericolo"]
[null,"totale [n.]",null,null,null,null,null,0]
[null,null,null,null,null,"totale [n.]"]
[null,0,null,null,null,0,null,"in area indicativa di pericolo"]
[null,null,null,null,null,null,null,0]
[]
[]
[null,"Zone edificabili",null,"Abitazione",null,null,null,"in area di pericolo"]
[null,"totale [m2]",null,"totale [m2]",null,null,null,0]
[null,null,null,0,null,"totale [m2]"]
[null,0,null,null,null,0,null,"in area indicativa di pericolo"]
[null,null,null,null,null,null,null,0]
[]
[]
[null,null,null,"Lavoro",null,null,null,"in area di pericolo"]
[null,null,null,"totale [m2]",null,null,null,0]
[null,null,null,0,null,"totale [m2]"]
[null,null,null,null,null,0,null,"in area indicativa di pericolo"]
[null,null,null,null,null,null,null,0]
[]
[]
[null,null,null,"Misto",null,null,null,"in area di pericolo"]
[null,null,null,"totale [m2]",null,null,null,0]
[null,null,null,0,null,"totale [m2]"]
[null,null,null,null,null,0,null,"in area indicativa di pericolo"]
[null,null,null,null,null,null,null,0]
[]
[]
[null,null,null,"Altro",null,null,null,"in area di pericolo"]
[null,null,null,"totale [m2]",null,null,null,0]
[null,null,null,0,null,"totale [m2]"]
[null,null,null,null,null,0,null,"in area indicativa di pericolo"]
[null,null,null,null,null,null,null,0]
[]
[]
[null,"Risorse",null,null,null,null,null,"in area di pericolo"]
[null,"vitali",null,null,null,null,null,0]
[null,"Suolo",null,null,null,"totale [m2]"]
[null,"totale [m2]",null,null,null,0,null,"in area indicativa di pericolo"]
[null,0,null,null,null,null,null,0]
[]
[]
[null,"Risorse",null,null,null,null,null,"in area di pericolo"]
[null,"vitali",null,null,null,null,null,0]
[null,"Acqua",null,null,null,"totale [m2]"]
[null,"totale [m2]",null,null,null,0,null,"in area indicativa di pericolo"]
[null,0,null,null,null,null,null,0]
[]
[]
[null,"Oggetti",null,null,null,null,null,"in area di pericolo"]
[null,"speciali",null,null,null,null,null,0]
[null,"totale [n.]",null,null,null,"totale [n.]"]
[null,0,null,null,null,0,null,"in area indicativa di pericolo"]
[null,null,null,null,null,null,null,0]

{"sheet":"Crollo","index":3,"n_rows":147,"n_cols":28,"rows_kept":147,"cut":false,"hidden":false,"merged":[]}
["Processo principale Crollo"]
[]
["BENE DA PROTEGGERE",null,null,null,null,"ESPOSIZIONE (in aree di pericolo e indicative di pericolo)",null,null,null,null,null,null,null,null,"ESPOSIZIONE (per scenario di base)",null,null,null,null,null,"RISCHIO individuale",null,"RISCHIO collettivo"]
[]
[null,null,null,null,null,null,null,null,null,null,null,null,null,null,null,null,null,null,null,null,"Rischio di decesso individuale",null,"Rischio in termini monetari"]
[]
[null,null,null,null,null,"totale",null,"per area",null,"per grado di pericolo",null,null,null,null,"per probabilità di occorrenza e intensità",null,null,null,null,null,"Numero di persone r > 10-5",null,"Entità del danno Awj par scenario di base [CHF]",null,null,null,null,"Rischio [CHF/a]"]
[]
[null,null,null,null,null,null,null,null,null,"rosso","blu","giallo","giallo-bianco",null,null,"30 anni","100 anni","300 anni","estremo",null,null,null,"30 anni","100 anni","300 anni","estremo"]
[null,"Popolazione",null,null,null,null,null,"in area di pericolo",null,"[n.]","[n.]","[n.]","[n.]",null,"debole",0,0,0,0,null,0,null,0,0,0,0,null,0]
[null,"residente",null,null,null,null,null,0,null,0,0,0,0,null,"media",0,0,0,0]
[null,"totale [n.]",null,null,null,"totale [n.]",null,null,null,null,null,null,null,null,"forte",0,0,0,0]
[null,0,null,null,null,0,null,"in area indicativa di pericolo"]
[null,null,null,null,null,null,null,0]
[]
["Persone",null,null,null,null,null,null,null,null,"rosso","blu","giallo","giallo-bianco",null,null,"30 anni","100 anni","300 anni","estremo",null,null,null,"30 anni","100 anni","300 anni","estremo"]
[null,"Occupati",null,null,null,null,null,"in area di pericolo",null,"[n.]","[n.]","[n.]","[n.]",null,"debole",0,0,0,0,null,0,null,0,0,0,0,null,0]
[null,null,null,null,null,null,null,0,null,0,0,0,0,null,"media",0,0,0,0]
[null,"totale [n.]",null,null,null,"totale [n.]",null,null,null,null,null,null,null,null,"forte",0,0,0,0]
[null,0,null,null,null,0,null,"in area indicativa di pericolo"]
[null,null,null,null,null,null,null,0]
[]
[null,null,null,null,null,null,null,null,null,"rosso","blu","giallo","giallo-bianco",null,null,"30 anni","100 anni","300 anni","estremo",null,null,null,"30 anni","100 anni","300 anni","estremo"]
["Beni","Edifici",null,"Abitazione",null,null,null,"in area di pericolo",null,"[m2]","[m2]","[m2]","[m2]",null,"debole",0,0,0,0,null,null,null,0,0,0,0,null,0]
["importanti","totale [m2]",null,"totale [m2]",null,"totale [m2]",null,0,null,0,0,0,0,null,"media",0,0,0,0]
[null,0,null,0,null,0,null,0,null,null,null,null,null,null,"forte",0,0,0,0]
[null,"totale [n.]",null,"totale [n.]",null,"totale [n.]",null,"in area indicativa di pericolo"]
[null,0,null,0,null,0,null,0]
[null,null,null,null,null,null,null,0]
[null,null,null,null,null,null,null,null,null,"rosso","blu","giallo","giallo-bianco",null,null,"30 anni","100 anni","300 anni","estremo",null,null,null,"30 anni","100 anni","300 anni","estremo"]
[null,null,null,"Lavoro",null,null,null,"in area di pericolo",null,"[m2]","[m2]","[m2]","[m2]",null,"debole",0,0,0,0,null,null,null,0,0,0,0,null,0]
[null,null,null,"totale [m2]",null,"totale [m2]",null,0,null,0,0,0,0,null,"media",0,0,0,0]
[null,null,null,0,null,0,null,0,null,null,null,null,null,null,"forte",0,0,0,0]
[null,null,null,"totale [n.]",null,"totale [n.]",null,"in area indicativa di pericolo"]
[null,null,null,0,null,0,null,0]
[null,null,null,null,null,null,null,0]
[null,null,null,null,null,null,null,null,null,"rosso","blu","giallo","giallo-bianco",null,null,"30 anni","100 anni","300 anni","estremo",null,null,null,"30 anni","100 anni","300 anni","estremo"]
[null,null,null,"Misto",null,null,null,"in area di pericolo",null,"[m2]","[m2]","[m2]","[m2]",null,"debole",0,0,0,0,null,null,null,0,0,0,0,null,0]
[null,null,null,"totale [m2]",null,"totale [m2]",null,0,null,0,0,0,0,null,"media",0,0,0,0]
[null,null,null,0,null,0,null,0,null,null,null,null,null,null,"forte",0,0,0,0]
[null,null,null,"totale [n.]",null,"totale [n.]",null,"in area indicativa di pericolo"]
[null,null,null,0,null,0,null,0]
[null,null,null,null,null,null,null,0]
[null,null,null,null,null,null,null,null,null,"rosso","blu","giallo","giallo-bianco",null,null,"30 anni","100 anni","300 anni","estremo",null,null,null,"30 anni","100 anni","300 anni","estremo"]
[null,null,null,"Altro",null,null,null,"in area di pericolo",null,"[m2]","[m2]","[m2]","[m2]",null,"debole",0,0,0,0,null,null,null,0,0,0,0,null,0]
[null,null,null,"totale [m2]",null,"totale [m2]",null,0,null,0,0,0,0,null,"media",0,0,0,0]
[null,null,null,0,null,0,null,0,null,null,null,null,null,null,"forte",0,0,0,0]
[null,null,null,"totale [n.]",null,"totale [n.]",null,"in area indicativa di pericolo"]
[null,null,null,0,null,0,null,0]
[null,null,null,null,null,null,null,0]
[]
[null,"Strada",null,"Proprietario",null,null,null,"in area di pericolo"]
[null,"totale [m]",null,"Confederazione",null,null,null,0]
[null,0,null,"totale [m]",null,"totale [m]"]
[null,null,null,0,null,0,null,"in area indicativa di pericolo"]
[null,null,null,null,null,null,null,0]
[]
[]
[null,null,null,"Proprietario",null,null,null,"in area di pericolo"]
[null,null,null,"Cantone",null,null,null,0]
[null,null,null,"totale [m]",null,"totale [m]"]
[null,null,null,0,null,0,null,"in area indicativa di pericolo"]
[null,null,null,null,null,null,null,0]
[]
[]
[null,null,null,"Proprietario",null,null,null,"in area di pericolo"]
[null,null,null,"Commune",null,null,null,0]
[null,null,null,"totale [m]",null,"totale [m]"]
[null,null,null,0,null,0,null,"in area indicativa di pericolo"]
[null,null,null,null,null,null,null,0]
[]
[]
[null,"Ferrovia",null,"Scarto",null,null,null,"in area di pericolo"]
[null,"totale [m]",null,"normale",null,null,null,0]
[null,null,null,"totale [m]",null,"totale [m]"]
[null,0,null,0,null,0,null,"in area indicativa di pericolo"]
[null,null,null,null,null,null,null,0]
[]
[]
[null,null,null,"Scarto",null,null,null,"in area di pericolo"]
[null,null,null,"ridotto",null,null,null,0]
[null,null,null,"totale [m]",null,"totale [m]"]
[null,null,null,0,null,0,null,"in area indicativa di pericolo"]
[null,null,null,null,null,null,null,0]
[]
[]
[null,null,null,"Scarto ridotto",null,null,null,"in area di pericolo"]
[null,null,null,"con normale",null,null,null,0]
[null,null,null,null,null,"totale [m]"]
[null,null,null,"totale [m]",null,0,null,"in area indicativa di pericolo"]
[null,null,null,0,null,null,null,0]
[]
[]
[null,"Beni culturali",null,null,null,null,null,"in area di pericolo"]
[null,"totale [n.]",null,null,null,null,null,0]
[null,null,null,null,null,"totale [n.]"]
[null,0,null,null,null,0,null,"in area indicativa di pericolo"]
[null,null,null,null,null,null,null,0]
[]
[]
[null,"Zone edificabili",null,"Abitazione",null,null,null,"in area di pericolo"]
[null,"totale [m2]",null,"totale [m2]",null,null,null,0]
[null,null,null,0,null,"totale [m2]"]
[null,0,null,null,null,0,null,"in area indicativa di pericolo"]
[null,null,null,null,null,null,null,0]
[]
[]
[null,null,null,"Lavoro",null,null,null,"in area di pericolo"]
[null,null,null,"totale [m2]",null,null,null,0]
[null,null,null,0,null,"totale [m2]"]
[null,null,null,null,null,0,null,"in area indicativa di pericolo"]
[null,null,null,null,null,null,null,0]
[]
[]
[null,null,null,"Misto",null,null,null,"in area di pericolo"]
[null,null,null,"totale [m2]",null,null,null,0]
[null,null,null,0,null,"totale [m2]"]
[null,null,null,null,null,0,null,"in area indicativa di pericolo"]
[null,null,null,null,null,null,null,0]
[]
[]
[null,null,null,"Altro",null,null,null,"in area di pericolo"]
[null,null,null,"totale [m2]",null,null,null,0]
[null,null,null,0,null,"totale [m2]"]
[null,null,null,null,null,0,null,"in area indicativa di pericolo"]
[null,null,null,null,null,null,null,0]
[]
[]
[null,"Risorse",null,null,null,null,null,"in area di pericolo"]
[null,"vitali",null,null,null,null,null,0]
[null,"Suolo",null,null,null,"totale [m2]"]
[null,"totale [m2]",null,null,null,0,null,"in area indicativa di pericolo"]
[null,0,null,null,null,null,null,0]
[]
[]
[null,"Risorse",null,null,null,null,null,"in area di pericolo"]
[null,"vitali",null,null,null,null,null,0]
[null,"Acqua",null,null,null,"totale [m2]"]
[null,"totale [m2]",null,null,null,0,null,"in area indicativa di pericolo"]
[null,0,null,null,null,null,null,0]
[]
[]
[null,"Oggetti",null,null,null,null,null,"in area di pericolo"]
[null,"speciali",null,null,null,null,null,0]
[null,"totale [n.]",null,null,null,"totale [n.]"]
[null,0,null,null,null,0,null,"in area indicativa di pericolo"]
[null,null,null,null,null,null,null,0]

{"sheet":"Valanga","index":4,"n_rows":147,"n_cols":28,"rows_kept":147,"cut":false,"hidden":false,"merged":[]}
["Processo principale Valanga"]
[]
["BENE DA PROTEGGERE",null,null,null,null,"ESPOSIZIONE (in aree di pericolo e indicative di pericolo)",null,null,null,null,null,null,null,null,"ESPOSIZIONE (per scenario di base)",null,null,null,null,null,"RISCHIO individuale",null,"RISCHIO collettivo"]
[]
[null,null,null,null,null,null,null,null,null,null,null,null,null,null,null,null,null,null,null,null,"Rischio di decesso individuale",null,"Rischio in termini monetari"]
[]
[null,null,null,null,null,"totale",null,"per area",null,"per grado di pericolo",null,null,null,null,"per probabilità di occorrenza e intensità",null,null,null,null,null,"Numero di persone r > 10-5",null,"Entità del danno Awj par scenario di base [CHF]",null,null,null,null,"Rischio [CHF/a]"]
[]
[null,null,null,null,null,null,null,null,null,"rosso","blu","giallo","giallo-bianco",null,null,"30 anni","100 anni","300 anni","estremo",null,null,null,"30 anni","100 anni","300 anni","estremo"]
[null,"Popolazione",null,null,null,null,null,"in area di pericolo",null,"[n.]","[n.]","[n.]","[n.]",null,"debole",0,0,0,0,null,0,null,0,0,0,0,null,0]
[null,"residente",null,null,null,null,null,0,null,0,0,0,0,null,"media",0,0,0,0]
[null,"totale [n.]",null,null,null,"totale [n.]",null,null,null,null,null,null,null,null,"forte",0,0,0,0]
[null,0,null,null,null,0,null,"in area indicativa di pericolo"]
[null,null,null,null,null,null,null,0]
[]
["Persone",null,null,null,null,null,null,null,null,"rosso","blu","giallo","giallo-bianco",null,null,"30 anni","100 anni","300 anni","estremo",null,null,null,"30 anni","100 anni","300 anni","estremo"]
[null,"Occupati",null,null,null,null,null,"in area di pericolo",null,"[n.]","[n.]","[n.]","[n.]",null,"debole",0,0,0,0,null,0,null,0,0,0,0,null,0]
[null,null,null,null,null,null,null,0,null,0,0,0,0,null,"media",0,0,0,0]
[null,"totale [n.]",null,null,null,"totale [n.]",null,null,null,null,null,null,null,null,"forte",0,0,0,0]
[null,0,null,null,null,0,null,"in area indicativa di pericolo"]
[null,null,null,null,null,null,null,0]
[]
[null,null,null,null,null,null,null,null,null,"rosso","blu","giallo","giallo-bianco",null,null,"30 anni","100 anni","300 anni","estremo",null,null,null,"30 anni","100 anni","300 anni","estremo"]
["Beni","Edifici",null,"Abitazione",null,null,null,"in area di pericolo",null,"[m2]","[m2]","[m2]","[m2]",null,"debole",0,0,0,0,null,null,null,0,0,0,0,null,0]
["importanti","totale [m2]",null,"totale [m2]",null,"totale [m2]",null,0,null,0,0,0,0,null,"media",0,0,0,0]
[null,0,null,0,null,0,null,0,null,null,null,null,null,null,"forte",0,0,0,0]
[null,"totale [n.]",null,"totale [n.]",null,"totale [n.]",null,"in area indicativa di pericolo"]
[null,0,null,0,null,0,null,0]
[null,null,null,null,null,null,null,0]
[null,null,null,null,null,null,null,null,null,"rosso","blu","giallo","giallo-bianco",null,null,"30 anni","100 anni","300 anni","estremo",null,null,null,"30 anni","100 anni","300 anni","estremo"]
[null,null,null,"Lavoro",null,null,null,"in area di pericolo",null,"[m2]","[m2]","[m2]","[m2]",null,"debole",0,0,0,0,null,null,null,0,0,0,0,null,0]
[null,null,null,"totale [m2]",null,"totale [m2]",null,0,null,0,0,0,0,null,"media",0,0,0,0]
[null,null,null,0,null,0,null,0,null,null,null,null,null,null,"forte",0,0,0,0]
[null,null,null,"totale [n.]",null,"totale [n.]",null,"in area indicativa di pericolo"]
[null,null,null,0,null,0,null,0]
[null,null,null,null,null,null,null,0]
[null,null,null,null,null,null,null,null,null,"rosso","blu","giallo","giallo-bianco",null,null,"30 anni","100 anni","300 anni","estremo",null,null,null,"30 anni","100 anni","300 anni","estremo"]
[null,null,null,"Misto",null,null,null,"in area di pericolo",null,"[m2]","[m2]","[m2]","[m2]",null,"debole",0,0,0,0,null,null,null,0,0,0,0,null,0]
[null,null,null,"totale [m2]",null,"totale [m2]",null,0,null,0,0,0,0,null,"media",0,0,0,0]
[null,null,null,0,null,0,null,0,null,null,null,null,null,null,"forte",0,0,0,0]
[null,null,null,"totale [n.]",null,"totale [n.]",null,"in area indicativa di pericolo"]
[null,null,null,0,null,0,null,0]
[null,null,null,null,null,null,null,0]
[null,null,null,null,null,null,null,null,null,"rosso","blu","giallo","giallo-bianco",null,null,"30 anni","100 anni","300 anni","estremo",null,null,null,"30 anni","100 anni","300 anni","estremo"]
[null,null,null,"Altro",null,null,null,"in area di pericolo",null,"[m2]","[m2]","[m2]","[m2]",null,"debole",0,0,0,0,null,null,null,0,0,0,0,null,0]
[null,null,null,"totale [m2]",null,"totale [m2]",null,0,null,0,0,0,0,null,"media",0,0,0,0]
[null,null,null,0,null,0,null,0,null,null,null,null,null,null,"forte",0,0,0,0]
[null,null,null,"totale [n.]",null,"totale [n.]",null,"in area indicativa di pericolo"]
[null,null,null,0,null,0,null,0]
[null,null,null,null,null,null,null,0]
[]
[null,"Strada",null,"Proprietario",null,null,null,"in area di pericolo"]
[null,"totale [m]",null,"Confederazione",null,null,null,0]
[null,0,null,"totale [m]",null,"totale [m]"]
[null,null,null,0,null,0,null,"in area indicativa di pericolo"]
[null,null,null,null,null,null,null,0]
[]
[]
[null,null,null,"Proprietario",null,null,null,"in area di pericolo"]
[null,null,null,"Cantone",null,null,null,0]
[null,null,null,"totale [m]",null,"totale [m]"]
[null,null,null,0,null,0,null,"in area indicativa di pericolo"]
[null,null,null,null,null,null,null,0]
[]
[]
[null,null,null,"Proprietario",null,null,null,"in area di pericolo"]
[null,null,null,"Commune",null,null,null,0]
[null,null,null,"totale [m]",null,"totale [m]"]
[null,null,null,0,null,0,null,"in area indicativa di pericolo"]
[null,null,null,null,null,null,null,0]
[]
[]
[null,"Ferrovia",null,"Scarto",null,null,null,"in area di pericolo"]
[null,"totale [m]",null,"normale",null,null,null,0]
[null,null,null,"totale [m]",null,"totale [m]"]
[null,0,null,0,null,0,null,"in area indicativa di pericolo"]
[null,null,null,null,null,null,null,0]
[]
[]
[null,null,null,"Scarto",null,null,null,"in area di pericolo"]
[null,null,null,"ridotto",null,null,null,0]
[null,null,null,"totale [m]",null,"totale [m]"]
[null,null,null,0,null,0,null,"in area indicativa di pericolo"]
[null,null,null,null,null,null,null,0]
[]
[]
[null,null,null,"Scarto ridotto",null,null,null,"in area di pericolo"]
[null,null,null,"con normale",null,null,null,0]
[null,null,null,null,null,"totale [m]"]
[null,null,null,"totale [m]",null,0,null,"in area indicativa di pericolo"]
[null,null,null,0,null,null,null,0]
[]
[]
[null,"Beni culturali",null,null,null,null,null,"in area di pericolo"]
[null,"totale [n.]",null,null,null,null,null,0]
[null,null,null,null,null,"totale [n.]"]
[null,0,null,null,null,0,null,"in area indicativa di pericolo"]
[null,null,null,null,null,null,null,0]
[]
[]
[null,"Zone edificabili",null,"Abitazione",null,null,null,"in area di pericolo"]
[null,"totale [m2]",null,"totale [m2]",null,null,null,0]
[null,null,null,0,null,"totale [m2]"]
[null,0,null,null,null,0,null,"in area indicativa di pericolo"]
[null,null,null,null,null,null,null,0]
[]
[]
[null,null,null,"Lavoro",null,null,null,"in area di pericolo"]
[null,null,null,"totale [m2]",null,null,null,0]
[null,null,null,0,null,"totale [m2]"]
[null,null,null,null,null,0,null,"in area indicativa di pericolo"]
[null,null,null,null,null,null,null,0]
[]
[]
[null,null,null,"Misto",null,null,null,"in area di pericolo"]
[null,null,null,"totale [m2]",null,null,null,0]
[null,null,null,0,null,"totale [m2]"]
[null,null,null,null,null,0,null,"in area indicativa di pericolo"]
[null,null,null,null,null,null,null,0]
[]
[]
[null,null,null,"Altro",null,null,null,"in area di pericolo"]
[null,null,null,"totale [m2]",null,null,null,0]
[null,null,null,0,null,"totale [m2]"]
[null,null,null,null,null,0,null,"in area indicativa di pericolo"]
[null,null,null,null,null,null,null,0]
[]
[]
[null,"Risorse",null,null,null,null,null,"in area di pericolo"]
[null,"vitali",null,null,null,null,null,0]
[null,"Suolo",null,null,null,"totale [m2]"]
[null,"totale [m2]",null,null,null,0,null,"in area indicativa di pericolo"]
[null,0,null,null,null,null,null,0]
[]
[]
[null,"Risorse",null,null,null,null,null,"in area di pericolo"]
[null,"vitali",null,null,null,null,null,0]
[null,"Acqua",null,null,null,"totale [m2]"]
[null,"totale [m2]",null,null,null,0,null,"in area indicativa di pericolo"]
[null,0,null,null,null,null,null,0]
[]
[]
[null,"Oggetti",null,null,null,null,null,"in area di pericolo"]
[null,"speciali",null,null,null,null,null,0]
[null,"totale [n.]",null,null,null,"totale [n.]"]
[null,0,null,null,null,0,null,"in area indicativa di pericolo"]
[null,null,null,null,null,null,null,0]

{"sheet":"Cockpit","index":5,"n_rows":176,"n_cols":20,"rows_kept":176,"cut":false,"hidden":false,"merged":[]}
[]
[null,null,null,null,null,"Processo principale ACQUA"]
[]
[null,"BENE DA PROTEGGERE",null,null,null,"ESPOSIZIONE",null,null,null,null,"RISCHIO"]
[]
[null,null,null,null,null,"per grado di pericolo o nella area indicativa di pericolo",null,null,null,null,"Rischio di decesso individuale",null,null,null,null,"Danno prevedibile annuo in CHF"]
[]
[null,"Popolazione","totale",null,null,null,null,"Abitanti",{"$f":"Acqua!$B$13","v":0},null,null,null,"Abitanti",{"$f":"Acqua!$B$13","v":0}]
[null,"residente",{"$f":"Acqua!$B$13","v":0},null,null,null,null,"dei quali nelle zone  ",null,{"$f":"MAX(I11:I15,I23:I27,I51:I55,I63:I67,I91:I95,I103:I107,I131:I135,I143:I147)","v":0},null,null,"dei quali con"]
[null,null,"Abitanti",null,null,null,null,null,null,{"$f":"ROUNDUP((J9/10^(LEN(INT(J9))-1)),0)*10^(LEN(INT(J9))-1)","v":0},null,null,"rischio di decesso individuale"]
[null,null,null,null,null,null,null,"pericolo elevato",{"$f":"Acqua!$J$11","v":0},{"$f":"$J$10-I11","v":0}]
[null,null,null,null,null,null,null,"pericolo medio",{"$f":"Acqua!$K$11","v":0},{"$f":"$J$10-I12","v":0},null,null,"maggiore a 10-5",{"$f":"Acqua!$U$10","v":0}]
[null,null,null,null,null,null,null,"pericolo basso",{"$f":"Acqua!$L$11","v":0},0,null,null,"inferiore a 10-5",{"$f":"SUM(I11:I14)-N12","v":0},null,null,null,"Persone",{"$f":"Acqua!$AB$10+Acqua!$AB$17","v":0}]
[null,null,null,null,null,null,null,"pericolo residuo",{"$f":"Acqua!$M$11","v":0},0,null,null,"non colpito",{"$f":"N8-N12-N13","v":0},null,null,null,"dei quali [%]"]
[null,null,null,null,null,null,null,"in una area indicativa di pericolo ",{"$f":"Acqua!$H$14","v":0},0]
[null,null,null,null,null,null,null,null,null,null,null,null,null,null,null,null,null,"eventi frequenti",{"$f":"100*(Tabella!$E$5/Tabella!$I$5)","v":{"$error":"#DIV/0!"}},{"$f":"Tabella!$E$5","v":0}]
[null,null,null,null,null,null,null,null,null,null,null,null,null,null,null,null,null,"eventi di frequenza media",{"$f":"100*(Tabella!$F$5/Tabella!$I$5)","v":{"$error":"#DIV/0!"}},{"$f":"Tabella!$F$5","v":0}]
[null,null,null,null,null,null,null,null,null,null,null,null,null,null,null,null,null,"eventi rari",{"$f":"100*(Tabella!$G$5/Tabella!$I$5)","v":{"$error":"#DIV/0!"}},{"$f":"Tabella!$G$5","v":0}]
[null,null,null,null,null,null,null,null,null,null,null,null,null,null,null,null,null,"eventi molto rari",{"$f":"100*(Tabella!$H$5/Tabella!$I$5)","v":{"$error":"#DIV/0!"}},{"$f":"Tabella!$H$5","v":0}]
[null,"Occupati","totale",null,null,null,null,"Occupati",{"$f":"Acqua!$B$20","v":0},null,null,null,"Occupati",{"$f":"Acqua!$B$20","v":0}]
[null,null,{"$f":"Acqua!$B$20","v":0},null,null,null,null,"dei quali nelle zone  ",null,null,null,null,"dei quali con"]
[null,null,"Occupati",null,null,null,null,null,null,null,null,null,"rischio di decesso individuale"]
[null,null,null,null,null,null,null,"pericolo elevato",{"$f":"Acqua!$J$18","v":0},{"$f":"$J$10-I23","v":0}]
[null,null,null,null,null,null,null,"pericolo medio",{"$f":"Acqua!$K$18","v":0},{"$f":"$J$10-I24","v":0},null,null,"maggiore a 10-5",{"$f":"Acqua!$U$17","v":0}]
[null,null,null,null,null,null,null,"pericolo basso",{"$f":"Acqua!$L$18","v":0},0,null,null,"inferiore a 10-5",{"$f":"SUM(I23:I26)-N24","v":0}]
[null,null,null,null,null,null,null,"pericolo residuo",{"$f":"Acqua!$M$18","v":0},0,null,null,"non colpito",{"$f":"N20-N24-N25","v":0}]
[null,null,null,null,null,null,null,"in una area indicativa di pericolo ",{"$f":"Acqua!$H$21","v":0},0]
[]
[]
[]
[]
[null,"Edifici","totale",null,null,null,null,"m2 Superficie edificata",{"$f":"Acqua!$B$26","v":0},null,null,null,null,null,null,null,null,"Edifici",{"$f":"SUM(Acqua!$AB$24,Acqua!$AB$31,Acqua!$AB$38,Acqua!$AB$45)","v":0}]
[null,null,{"$f":"Acqua!$B$26","v":0},"m2",null,null,null,"dei quali nelle zone  ",null,{"$f":"MAX(I35:I39,I75:I79,I115:I119,I155:I159)","v":0},null,null,null,null,null,null,null,"dei quali [%]"]
[null,null,"Superficie edificata",null,null,null,null,null,null,{"$f":"ROUNDUP((J33/10^(LEN(INT(J33))-1)),0)*10^(LEN(INT(J33))-1)","v":0}]
[null,null,null,null,null,null,null,"pericolo elevato",{"$f":"Acqua!$J$25+Acqua!$J$32+Acqua!$J$39+Acqua!$J$46","v":0},{"$f":"$J$34-I35","v":0},null,null,null,null,null,null,null,"eventi frequenti",{"$f":"100*(Tabella!$E$10/Tabella!$I$10)","v":{"$error":"#DIV/0!"}},{"$f":"Tabella!$E$10","v":0}]
[null,null,{"$f":"Acqua!$B$28","v":0},"Gebäude",null,null,null,"pericolo medio",{"$f":"Acqua!$K$25+Acqua!$K$32+Acqua!$K$39+Acqua!$K$46","v":0},{"$f":"$J$34-I36","v":0},null,null,null,null,null,null,null,"eventi di frequenza media",{"$f":"100*(Tabella!$F$10/Tabella!$I$10)","v":{"$error":"#DIV/0!"}},{"$f":"Tabella!$F$10","v":0}]
[null,null,null,null,null,null,null,"pericolo basso",{"$f":"Acqua!$L$25+Acqua!$L$32+Acqua!$L$39+Acqua!$L$46","v":0},0,null,null,null,null,null,null,null,"eventi rari",{"$f":"100*(Tabella!$G$10/Tabella!$I$10)","v":{"$error":"#DIV/0!"}},{"$f":"Tabella!$G$10","v":0}]
[null,null,null,null,null,null,null,"pericolo residuo",{"$f":"Acqua!$M$25+Acqua!$M$32+Acqua!$M$39+Acqua!$M$46","v":0},0,null,null,null,null,null,null,null,"eventi molto rari",{"$f":"100*(Tabella!$H$10/Tabella!$I$10)","v":{"$error":"#DIV/0!"}},{"$f":"Tabella!$H$10","v":0}]
[null,null,null,null,null,null,null,"in una area indicativa di pericolo ",{"$f":"Acqua!$H$28+Acqua!$H$35+Acqua!$H$42+Acqua!$H$49","v":0},0]
[]
[]
[null,null,null,null,null,"Processo principale SCIVOLAMENTO"]
[]
[null,"BENE DA PROTEGGERE",null,null,null,"ESPOSIZIONE",null,null,null,null,"RISCHIO"]
[]
[null,null,null,null,null,"per grado di pericolo o nella area indicativa di pericolo",null,null,null,null,"Rischio di decesso individuale",null,null,null,null,"Danno prevedibile annuo in CHF"]
[]
[null,"Popolazione","totale",null,null,null,null,"Abitanti",{"$f":"Scivolamento!$B$13","v":0},null,null,null,"Abitanti",{"$f":"Scivolamento!$B$13","v":0}]
[null,"residente",{"$f":"Scivolamento!$B$13","v":0},null,null,null,null,"dei quali nelle zone  ",null,null,null,null,"dei quali con"]
[null,null,"Abitanti",null,null,null,null,null,null,null,null,null,"rischio di decesso individuale"]
[null,null,null,null,null,null,null,"pericolo elevato",{"$f":"Scivolamento!$J$11","v":0},{"$f":"$J$10-I51","v":0}]
[null,null,null,null,null,null,null,"pericolo medio",{"$f":"Scivolamento!$K$11","v":0},{"$f":"$J$10-I52","v":0},null,null,"maggiore a 10-5",{"$f":"Scivolamento!$U$10","v":0}]
[null,null,null,null,null,null,null,"pericolo basso",{"$f":"Scivolamento!$L$11","v":0},0,null,null,"inferiore a 10-5",{"$f":"SUM(I51:I54)-N52","v":0},null,null,null,"Persone",{"$f":"Scivolamento!$AB$10+Scivolamento!$AB$17","v":0}]
[null,null,null,null,null,null,null,"pericolo residuo",{"$f":"Scivolamento!$M$11","v":0},0,null,null,"non colpito",{"$f":"N48-N52-N53","v":0},null,null,null,"dei quali [%]"]
[null,null,null,null,null,null,null,"in una area indicativa di pericolo ",{"$f":"Scivolamento!$H$14","v":0},0]
[null,null,null,null,null,null,null,null,null,null,null,null,null,null,null,null,null,"eventi frequenti",{"$f":"100*(Tabella!$E$14/Tabella!$I$14)","v":{"$error":"#DIV/0!"}},{"$f":"Tabella!$E$14","v":0}]
[null,null,null,null,null,null,null,null,null,null,null,null,null,null,null,null,null,"eventi di frequenza media",{"$f":"100*(Tabella!$F$14/Tabella!$I$14)","v":{"$error":"#DIV/0!"}},{"$f":"Tabella!$F$14","v":0}]
[null,null,null,null,null,null,null,null,null,null,null,null,null,null,null,null,null,"eventi rari",{"$f":"100*(Tabella!$G$14/Tabella!$I$14)","v":{"$error":"#DIV/0!"}},{"$f":"Tabella!$G$14","v":0}]
[null,null,null,null,null,null,null,null,null,null,null,null,null,null,null,null,null,"eventi molto rari",{"$f":"100*(Tabella!$H$14/Tabella!$I$14)","v":{"$error":"#DIV/0!"}},{"$f":"Tabella!$H$14","v":0}]
[null,"Occupati","totale",null,null,null,null,"Occupati",{"$f":"Scivolamento!$B$20","v":0},null,null,null,"Occupati",{"$f":"Scivolamento!$B$20","v":0}]
[null,null,{"$f":"Scivolamento!$B$20","v":0},null,null,null,null,"dei quali nelle zone  ",null,null,null,null,"dei quali con"]
[null,null,"Occupati",null,null,null,null,null,null,null,null,null,"rischio di decesso individuale"]
[null,null,null,null,null,null,null,"pericolo elevato",{"$f":"Scivolamento!$J$18","v":0},{"$f":"$J$10-I63","v":0}]
[null,null,null,null,null,null,null,"pericolo medio",{"$f":"Scivolamento!$K$18","v":0},{"$f":"$J$10-I64","v":0},null,null,"maggiore a 10-5",{"$f":"Scivolamento!$U$17","v":0}]
[null,null,null,null,null,null,null,"pericolo basso",{"$f":"Scivolamento!$L$18","v":0},0,null,null,"inferiore a 10-5",{"$f":"SUM(I63:I66)-N64","v":0}]
[null,null,null,null,null,null,null,"pericolo residuo",{"$f":"Scivolamento!$M$18","v":0},0,null,null,"non colpito",{"$f":"N60-N64-N65","v":0}]
[null,null,null,null,null,null,null,"in una area indicativa di pericolo ",{"$f":"Scivolamento!$H$21","v":0},0]
[]
[]
[]
[]
[null,"Edifici","totale",null,null,null,null,"m2 Superficie edificata",{"$f":"Scivolamento!$B$26","v":0},null,null,null,null,null,null,null,null,"Edifici",{"$f":"SUM(Scivolamento!$AB$24,Scivolamento!$AB$31,Scivolamento!$AB$38,Scivolamento!$AB$45)","v":0}]
[null,null,{"$f":"Scivolamento!$B$26","v":0},"m2",null,null,null,"dei quali nelle zone  ",null,null,null,null,null,null,null,null,null,"dei quali [%]"]
[null,null,"Superficie edificata"]
[null,null,null,null,null,null,null,"pericolo elevato",{"$f":"Scivolamento!$J$25+Scivolamento!$J$32+Scivolamento!$J$39+Scivolamento!$J$46","v":0},{"$f":"$J$34-I75","v":0},null,null,null,null,null,null,null,"eventi frequenti",{"$f":"100*(Tabella!$E$19/Tabella!$I$19)","v":{"$error":"#DIV/0!"}},{"$f":"Tabella!$E$19","v":0}]
[null,null,{"$f":"Scivolamento!$B$28","v":0},"Gebäude",null,null,null,"pericolo medio",{"$f":"Scivolamento!$K$25+Scivolamento!$K$32+Scivolamento!$K$39+Scivolamento!$K$46","v":0},{"$f":"$J$34-I76","v":0},null,null,null,null,null,null,null,"eventi di frequenza media",{"$f":"100*(Tabella!$F$19/Tabella!$I$19)","v":{"$error":"#DIV/0!"}},{"$f":"Tabella!$F$19","v":0}]
[null,null,null,null,null,null,null,"pericolo basso",{"$f":"Scivolamento!$L$25+Scivolamento!$L$32+Scivolamento!$L$39+Scivolamento!$L$46","v":0},0,null,null,null,null,null,null,null,"eventi rari",{"$f":"100*(Tabella!$G$19/Tabella!$I$19)","v":{"$error":"#DIV/0!"}},{"$f":"Tabella!$G$19","v":0}]
[null,null,null,null,null,null,null,"pericolo residuo",{"$f":"Scivolamento!$M$25+Scivolamento!$M$32+Scivolamento!$M$39+Scivolamento!$M$46","v":0},0,null,null,null,null,null,null,null,"eventi molto rari",{"$f":"100*(Tabella!$H$19/Tabella!$I$19)","v":{"$error":"#DIV/0!"}},{"$f":"Tabella!$H$19","v":0}]
[null,null,null,null,null,null,null,"in una area indicativa di pericolo ",{"$f":"Scivolamento!$H$28+Scivolamento!$H$35+Scivolamento!$H$42+Scivolamento!$H$49","v":0},0]
[]
[]
[null,null,null,null,null,"Processo principale CROLLO"]
[]
[null,"BENE DA PROTEGGERE",null,null,null,"ESPOSIZIONE",null,null,null,null,"RISCHIO"]
[]
[null,null,null,null,null,"per grado di pericolo o nella area indicativa di pericolo",null,null,null,null,"Rischio di decesso individuale",null,null,null,null,"Danno prevedibile annuo in CHF"]
[]
[null,"Popolazione","totale",null,null,null,null,"Abitanti",{"$f":"Crollo!$B$13","v":0},null,null,null,"Abitanti",{"$f":"Crollo!$B$13","v":0}]
[null,"residente",{"$f":"Crollo!$B$13","v":0},null,null,null,null,"dei quali nelle zone  ",null,null,null,null,"dei quali con"]
[null,null,"Abitanti",null,null,null,null,null,null,null,null,null,"rischio di decesso individuale"]
[null,null,null,null,null,null,null,"pericolo elevato",{"$f":"Crollo!$J$11","v":0},{"$f":"$J$10-I91","v":0}]
[null,null,null,null,null,null,null,"pericolo medio",{"$f":"Crollo!$K$11","v":0},{"$f":"$J$10-I92","v":0},null,null,"maggiore a 10-5",{"$f":"Crollo!$U$10","v":0}]
[null,null,null,null,null,null,null,"pericolo basso",{"$f":"Crollo!$L$11","v":0},0,null,null,"inferiore a 10-5",{"$f":"SUM(I91:I94)-N92","v":0},null,null,null,"Persone",{"$f":"Crollo!$AB$10+Crollo!$AB$17","v":0}]
[null,null,null,null,null,null,null,"pericolo residuo",{"$f":"Crollo!$M$11","v":0},0,null,null,"non colpito",{"$f":"N88-N92-N93","v":0},null,null,null,"dei quali [%]"]
[null,null,null,null,null,null,null,"in una area indicativa di pericolo ",{"$f":"Crollo!$H$14","v":0},0]
[null,null,null,null,null,null,null,null,null,null,null,null,null,null,null,null,null,"eventi frequenti",{"$f":"100*(Tabella!$E$23/Tabella!$I$23)","v":{"$error":"#DIV/0!"}},{"$f":"Tabella!$E$23","v":0}]
[null,null,null,null,null,null,null,null,null,null,null,null,null,null,null,null,null,"eventi di frequenza media",{"$f":"100*(Tabella!$F$23/Tabella!$I$23)","v":{"$error":"#DIV/0!"}},{"$f":"Tabella!$F$23","v":0}]
[null,null,null,null,null,null,null,null,null,null,null,null,null,null,null,null,null,"eventi rari",{"$f":"100*(Tabella!$G$23/Tabella!$I$23)","v":{"$error":"#DIV/0!"}},{"$f":"Tabella!$G$23","v":0}]
[null,null,null,null,null,null,null,null,null,null,null,null,null,null,null,null,null,"eventi molto rari",{"$f":"100*(Tabella!$H$23/Tabella!$I$23)","v":{"$error":"#DIV/0!"}},{"$f":"Tabella!$G$23","v":0}]
[null,"Occupati","totale",null,null,null,null,"Occupati",{"$f":"Crollo!$B$20","v":0},null,null,null,"Occupati",{"$f":"Crollo!$B$20","v":0}]
[null,null,{"$f":"Crollo!$B$20","v":0},null,null,null,null,"dei quali nelle zone  ",null,null,null,null,"dei quali con"]
[null,null,"Occupati",null,null,null,null,null,null,null,null,null,"rischio di decesso individuale"]
[null,null,null,null,null,null,null,"pericolo elevato",{"$f":"Crollo!$J$18","v":0},{"$f":"$J$10-I103","v":0}]
[null,null,null,null,null,null,null,"pericolo medio",{"$f":"Crollo!$K$18","v":0},{"$f":"$J$10-I104","v":0},null,null,"maggiore a 10-5",{"$f":"Crollo!$U$17","v":0}]
[null,null,null,null,null,null,null,"pericolo basso",{"$f":"Crollo!$L$18","v":0},0,null,null,"inferiore a 10-5",{"$f":"SUM(I103:I106)-N104","v":0}]
[null,null,null,null,null,null,null,"pericolo residuo",{"$f":"Crollo!$M$18","v":0},0,null,null,"non colpito",{"$f":"N100-N104-N105","v":0}]
[null,null,null,null,null,null,null,"in una area indicativa di pericolo ",{"$f":"Crollo!$H$21","v":0},0]
[]
[]
[]
[]
[null,"Edifici","totale",null,null,null,null,"m2 Superficie edificata",{"$f":"Crollo!$B$26","v":0},null,null,null,null,null,null,null,null,"Edifici",{"$f":"SUM(Crollo!$AB$24,Crollo!$AB$31,Crollo!$AB$38,Crollo!$AB$45)","v":0}]
[null,null,{"$f":"Crollo!$B$26","v":0},"m2",null,null,null,"dei quali nelle zone  ",null,null,null,null,null,null,null,null,null,"dei quali [%]"]
[null,null,"Superficie edificata"]
[null,null,null,null,null,null,null,"pericolo elevato",{"$f":"Crollo!$J$25+Crollo!$J$32+Crollo!$J$39+Crollo!$J$46","v":0},{"$f":"$J$34-I115","v":0},null,null,null,null,null,null,null,"eventi frequenti",{"$f":"100*(Tabella!$E$28/Tabella!$I$28)","v":{"$error":"#DIV/0!"}},{"$f":"Tabella!$E$28","v":0}]
[null,null,{"$f":"Crollo!$B$28","v":0},"Gebäude",null,null,null,"pericolo medio",{"$f":"Crollo!$K$25+Crollo!$K$32+Crollo!$K$39+Crollo!$K$46","v":0},{"$f":"$J$34-I116","v":0},null,null,null,null,null,null,null,"eventi di frequenza media",{"$f":"100*(Tabella!$F$28/Tabella!$I$28)","v":{"$error":"#DIV/0!"}},{"$f":"Tabella!$F$28","v":0}]
[null,null,null,null,null,null,null,"pericolo basso",{"$f":"Crollo!$L$25+Crollo!$L$32+Crollo!$L$39+Crollo!$L$46","v":0},0,null,null,null,null,null,null,null,"eventi rari",{"$f":"100*(Tabella!$G$28/Tabella!$I$28)","v":{"$error":"#DIV/0!"}},{"$f":"Tabella!$G$28","v":0}]
[null,null,null,null,null,null,null,"pericolo residuo",{"$f":"Crollo!$M$25+Crollo!$M$32+Crollo!$M$39+Crollo!$M$46","v":0},0,null,null,null,null,null,null,null,"eventi molto rari",{"$f":"100*(Tabella!$H$28/Tabella!$I$28)","v":{"$error":"#DIV/0!"}},{"$f":"Tabella!$H$28","v":0}]
[null,null,null,null,null,null,null,"in una area indicativa di pericolo ",{"$f":"Crollo!$H$28+Crollo!$H$35+Crollo!$H$42+Crollo!$H$49","v":0},0]
[]
[]
[null,null,null,null,null,"Processo principale VALANGA"]
[]
[null,"BENE DA PROTEGGERE",null,null,null,"ESPOSIZIONE",null,null,null,null,"RISCHIO"]
[]
[null,null,null,null,null,"per grado di pericolo o nella area indicativa di pericolo",null,null,null,null,"Rischio di decesso individuale",null,null,null,null,"Danno prevedibile annuo in CHF"]
[]
[null,"Popolazione","totale",null,null,null,null,"Abitanti",{"$f":"Valanga!$B$13","v":0},null,null,null,"Abitanti",{"$f":"Valanga!$B$13","v":0}]
[null,"residente",{"$f":"Valanga!$B$13","v":0},null,null,null,null,"dei quali nelle zone  ",null,null,null,null,"dei quali con"]
[null,null,"Abitanti",null,null,null,null,null,null,null,null,null,"rischio di decesso individuale"]
[null,null,null,null,null,null,null,"pericolo elevato",{"$f":"Valanga!$J$11","v":0},{"$f":"$J$10-I131","v":0}]
[null,null,null,null,null,null,null,"pericolo medio",{"$f":"Valanga!$K$11","v":0},{"$f":"$J$10-I132","v":0},null,null,"maggiore a 10-5",{"$f":"Valanga!$U$10","v":0}]
[null,null,null,null,null,null,null,"pericolo basso",{"$f":"Valanga!$L$11","v":0},0,null,null,"inferiore a 10-5",{"$f":"SUM(I131:I134)-N132","v":0},null,null,null,"Persone",{"$f":"Valanga!$AB$10+Valanga!$AB$17","v":0}]
[null,null,null,null,null,null,null,"pericolo residuo",{"$f":"Valanga!$M$11","v":0},0,null,null,"non colpito",{"$f":"N128-N132-N133","v":0},null,null,null,"dei quali [%]"]
[null,null,null,null,null,null,null,"in una area indicativa di pericolo ",{"$f":"Valanga!$H$14","v":0},0]
[null,null,null,null,null,null,null,null,null,null,null,null,null,null,null,null,null,"eventi frequenti",{"$f":"100*(Tabella!$E$32/Tabella!$I$32)","v":{"$error":"#DIV/0!"}},{"$f":"Tabella!$E$32","v":0}]
[null,null,null,null,null,null,null,null,null,null,null,null,null,null,null,null,null,"eventi di frequenza media",{"$f":"100*(Tabella!$F$32/Tabella!$I$32)","v":{"$error":"#DIV/0!"}},{"$f":"Tabella!$F$32","v":0}]
[null,null,null,null,null,null,null,null,null,null,null,null,null,null,null,null,null,"eventi rari",{"$f":"100*(Tabella!$G$32/Tabella!$I$32)","v":{"$error":"#DIV/0!"}},{"$f":"Tabella!$G$32","v":0}]
[null,null,null,null,null,null,null,null,null,null,null,null,null,null,null,null,null,"eventi molto rari",{"$f":"100*(Tabella!$H$32/Tabella!$I$32)","v":{"$error":"#DIV/0!"}},{"$f":"Tabella!$H$32","v":0}]
[null,"Occupati","totale",null,null,null,null,"Occupati",{"$f":"Valanga!$B$20","v":0},null,null,null,"Occupati",{"$f":"Valanga!$B$20","v":0}]
[null,null,{"$f":"Valanga!$B$20","v":0},null,null,null,null,"dei quali nelle zone  ",null,null,null,null,"dei quali con"]
[null,null,"Occupati",null,null,null,null,null,null,null,null,null,"rischio di decesso individuale"]
[null,null,null,null,null,null,null,"pericolo elevato",{"$f":"Valanga!$J$18","v":0},{"$f":"$J$10-I143","v":0}]
[null,null,null,null,null,null,null,"pericolo medio",{"$f":"Valanga!$K$18","v":0},{"$f":"$J$10-I144","v":0},null,null,"maggiore a 10-5",{"$f":"Valanga!$U$17","v":0}]
[null,null,null,null,null,null,null,"pericolo basso",{"$f":"Valanga!$L$18","v":0},0,null,null,"inferiore a 10-5",{"$f":"SUM(I143:I146)-N144","v":0}]
[null,null,null,null,null,null,null,"pericolo residuo",{"$f":"Valanga!$M$18","v":0},0,null,null,"non colpito",{"$f":"N140-N144-N145","v":0}]
[null,null,null,null,null,null,null,"in una area indicativa di pericolo ",{"$f":"Valanga!$H$21","v":0},0]
[]
[]
[]
[]
[null,"Edifici","totale",null,null,null,null,"m2 Superficie edificata",{"$f":"Valanga!$B$26","v":0},null,null,null,null,null,null,null,null,"Edifici",{"$f":"SUM(Valanga!$AB$24,Valanga!$AB$31,Valanga!$AB$38,Valanga!$AB$45)","v":0}]
[null,null,{"$f":"Valanga!$B$26","v":0},"m2",null,null,null,"dei quali nelle zone  ",null,null,null,null,null,null,null,null,null,"dei quali [%]"]
[null,null,"Superficie edificata"]
[null,null,null,null,null,null,null,"pericolo elevato",{"$f":"Valanga!$J$25+Valanga!$J$32+Valanga!$J$39+Valanga!$J$46","v":0},{"$f":"$J$34-I155","v":0},null,null,null,null,null,null,null,"eventi frequenti",{"$f":"100*(Tabella!$E$37/Tabella!$I$37)","v":{"$error":"#DIV/0!"}},{"$f":"Tabella!$E$37","v":0}]
[null,null,{"$f":"Valanga!$B$28","v":0},"Gebäude",null,null,null,"pericolo medio",{"$f":"Valanga!$K$25+Valanga!$K$32+Valanga!$K$39+Valanga!$K$46","v":0},{"$f":"$J$34-I156","v":0},null,null,null,null,null,null,null,"eventi di frequenza media",{"$f":"100*(Tabella!$F$37/Tabella!$I$37)","v":{"$error":"#DIV/0!"}},{"$f":"Tabella!$F$37","v":0}]
[null,null,null,null,null,null,null,"pericolo basso",{"$f":"Valanga!$L$25+Valanga!$L$32+Valanga!$L$39+Valanga!$L$46","v":0},0,null,null,null,null,null,null,null,"eventi rari",{"$f":"100*(Tabella!$G$37/Tabella!$I$37)","v":{"$error":"#DIV/0!"}},{"$f":"Tabella!$G$37","v":0}]
[null,null,null,null,null,null,null,"pericolo residuo",{"$f":"Valanga!$M$25+Valanga!$M$32+Valanga!$M$39+Valanga!$M$46","v":0},0,null,null,null,null,null,null,null,"eventi molto rari",{"$f":"100*(Tabella!$H$37/Tabella!$I$37)","v":{"$error":"#DIV/0!"}},{"$f":"Tabella!$H$37","v":0}]
[null,null,null,null,null,null,null,"in una area indicativa di pericolo ",{"$f":"Valanga!$H$28+Valanga!$H$35+Valanga!$H$42+Valanga!$H$49","v":0},0]
[]
[]
[]
[]
[null,null,null,null,null,null,null,null,null,null,"RISCHIO TOTALE"]
[]
[null,null,null,null,null,null,null,null,null,null,null,null,null,null,null,"Danno prevedibile annuo in CHF"]
[]
[]
[]
[null,null,null,null,null,null,null,null,null,null,null,null,null,null,null,null,null,"TOTALE",{"$f":"S13+S32+S53+S72+S93+S112+S133+S152","v":0}]
[null,null,null,null,null,null,null,null,null,null,null,null,null,null,null,null,null,"dei quali [%]"]
[]
[null,null,null,null,null,null,null,null,null,null,null,null,null,null,null,null,null,"eventi frequenti",{"$f":"100*(Tabella!$E$39/Tabella!$I$39)","v":{"$error":"#DIV/0!"}},{"$f":"Tabella!$E$39","v":0}]
[null,null,null,null,null,null,null,null,null,null,null,null,null,null,null,null,null,"eventi di frequenza media",{"$f":"100*(Tabella!$F$39/Tabella!$I$39)","v":{"$error":"#DIV/0!"}},{"$f":"Tabella!$F$39","v":0}]
[null,null,null,null,null,null,null,null,null,null,null,null,null,null,null,null,null,"eventi rari",{"$f":"100*(Tabella!$G$39/Tabella!$I$39)","v":{"$error":"#DIV/0!"}},{"$f":"Tabella!$G$39","v":0}]
[null,null,null,null,null,null,null,null,null,null,null,null,null,null,null,null,null,"eventi molto rari",{"$f":"100*(Tabella!$H$39/Tabella!$I$39)","v":{"$error":"#DIV/0!"}},{"$f":"Tabella!$H$39","v":0}]

{"sheet":"Tabella","index":6,"n_rows":45,"n_cols":15,"rows_kept":45,"cut":false,"hidden":false,"merged":[]}
["Processo principale\n","Bene da proteggere",null,"Numero di persone\n","Rischio in termini monetari 30 anni fino a 100 anni\n","Rischio in termini monetari 100 anni fino a 300 anni\n","Rischio in termini monetari 300 anni fino a estremo\n","Rischio in termini monetari sopra estremo\n","Danno annuale prevedibile\n\n",null,1,null,"CONTROLLO",null,"Periodo di ritorno scenario di base estremo\n(Evento estremo)"]
[null,null,null,null,null,null,null,null,null,null,2]
["Acqua","Persone","Popolazione redidente",{"$f":"Acqua!$B$13","v":0},{"$f":"Acqua!$W$10*(1/30-1/100)","v":0},{"$f":"Acqua!$X$10*(1/100-1/300)","v":0},{"$f":"Acqua!$Y$10*(1/300-1/$O$3)","v":0},{"$f":"IF(Acqua!Z10=0,Acqua!Y10*((1/$O$3)-(0)),(Acqua!Z10-0)*((1/$O$3)-(0)))","v":0},{"$f":"SUM(E3:H3)","v":0},null,3,null,null,null,1000]
[null,null,"Occupati",{"$f":"Acqua!$B$20","v":0},{"$f":"Acqua!$W$17*(1/30-1/100)","v":0},{"$f":"Acqua!$X$17*(1/100-1/300)","v":0},{"$f":"Acqua!$Y$17*(1/300-1/$O$3)","v":0},{"$f":"IF(Acqua!Z17=0,Acqua!Y17*((1/$O$3)-(0)),(Acqua!Z17-0)*((1/$O$3)-(0)))","v":0},{"$f":"SUM(E4:H4)","v":0},null,4]
[null,null,"Totale",null,{"$f":"E3+E4","v":0},{"$f":"F3+F4","v":0},0,0,{"$f":"I3+I4","v":0},null,5,null,{"$f":"Cockpit!S13-Tabella!I5","v":0}]
[null,"Edifici","Abitazione",null,{"$f":"Acqua!$W$24*(1/30-1/100)","v":0},{"$f":"Acqua!$X$24*(1/100-1/300)","v":0},{"$f":"Acqua!$Y$24*(1/300-1/$O$3)","v":0},{"$f":"IF(Acqua!Z24=0,Acqua!Y24*((1/$O$3)-(0)),(Acqua!Z24-0)*((1/$O$3)-(0)))","v":0},{"$f":"SUM(E6:H6)","v":0},null,6]
[null,null,"Lavoro",null,{"$f":"Acqua!$W$31*(1/30-1/100)","v":0},{"$f":"Acqua!$X$31*(1/100-1/300)","v":0},{"$f":"Acqua!$Y$31*(1/300-1/$O$3)","v":0},{"$f":"IF(Acqua!Z31=0,Acqua!Y31*((1/$O$3)-(0)),(Acqua!Z31-0)*((1/$O$3)-(0)))","v":0},{"$f":"SUM(E7:H7)","v":0},null,7]
[null,null,"Misto",null,{"$f":"Acqua!$W$38*(1/30-1/100)","v":0},{"$f":"Acqua!$X$38*(1/100-1/300)","v":0},{"$f":"Acqua!$Y$38*(1/300-1/$O$3)","v":0},{"$f":"IF(Acqua!Z38=0,Acqua!Y38*((1/$O$3)-(0)),(Acqua!Z38-0)*((1/$O$3)-(0)))","v":0},0,null,8]
[null,null,"Altro",null,{"$f":"Acqua!$W$45*(1/30-1/100)","v":0},{"$f":"Acqua!$X$45*(1/100-1/300)","v":0},{"$f":"Acqua!$Y$45*(1/300-1/$O$3)","v":0},{"$f":"IF(Acqua!Z45=0,Acqua!Y45*((1/$O$3)-(0)),(Acqua!Z45-0)*((1/$O$3)-(0)))","v":0},0,null,9]
[null,null,"Totale",null,{"$f":"SUM(E6:E9)","v":0},{"$f":"SUM(F6:F9)","v":0},0,0,{"$f":"I6+I7+I8+I9","v":0},null,10,null,{"$f":"Cockpit!S32-Tabella!I10","v":0}]
[null,null,null,null,null,null,null,null,null,null,11]
["Scivolamento","Persone","Popolazione redidente",{"$f":"Scivolamento!$B$13","v":0},{"$f":"Scivolamento!$W$10*(1/30-1/100)","v":0},{"$f":"Scivolamento!$X$10*(1/100-1/300)","v":0},{"$f":"Scivolamento!$Y$10*(1/300-1/$O$12)","v":0},{"$f":"IF(Scivolamento!Z10=0,Scivolamento!Y10*((1/$O$12)-(0)),(Scivolamento!Z10-0)*((1/$O$12)-(0)))","v":0},{"$f":"SUM(E12:H12)","v":0},null,12,null,null,null,1000]
[null,null,"Occupati",{"$f":"Scivolamento!$B$20","v":0},{"$f":"Scivolamento!$W$17*(1/30-1/100)","v":0},{"$f":"Scivolamento!$X$17*(1/100-1/300)","v":0},{"$f":"Scivolamento!$Y$17*(1/300-1/$O$12)","v":0},{"$f":"IF(Scivolamento!Z17=0,Scivolamento!Y17*((1/$O$12)-(0)),(Scivolamento!Z17-0)*((1/$O$12)-(0)))","v":0},{"$f":"SUM(E13:H13)","v":0},null,13]
[null,null,"Totale",null,{"$f":"E12+E13","v":0},{"$f":"F12+F13","v":0},0,0,{"$f":"I12+I13","v":0},null,14,null,{"$f":"Cockpit!S53-Tabella!I14","v":0}]
[null,"Edifici","Abitazione",null,{"$f":"Scivolamento!$W$24*(1/30-1/100)","v":0},{"$f":"Scivolamento!$X$24*(1/100-1/300)","v":0},{"$f":"Scivolamento!$Y$24*(1/300-1/$O$12)","v":0},{"$f":"IF(Scivolamento!Z24=0,Scivolamento!Y24*((1/$O$12)-(0)),(Scivolamento!Z24-0)*((1/$O$12)-(0)))","v":0},{"$f":"SUM(E15:H15)","v":0},null,15]
[null,null,"Lavoro",null,{"$f":"Scivolamento!$W$31*(1/30-1/100)","v":0},{"$f":"Scivolamento!$X$31*(1/100-1/300)","v":0},{"$f":"Scivolamento!$Y$31*(1/300-1/$O$12)","v":0},{"$f":"IF(Scivolamento!Z31=0,Scivolamento!Y31*((1/$O$12)-(0)),(Scivolamento!Z31-0)*((1/$O$12)-(0)))","v":0},{"$f":"SUM(E16:H16)","v":0},null,16]
[null,null,"Misto",null,{"$f":"Scivolamento!$W$38*(1/30-1/100)","v":0},{"$f":"Scivolamento!$X$38*(1/100-1/300)","v":0},{"$f":"Scivolamento!$Y$38*(1/300-1/$O$12)","v":0},{"$f":"IF(Scivolamento!Z38=0,Scivolamento!Y38*((1/$O$12)-(0)),(Scivolamento!Z38-0)*((1/$O$12)-(0)))","v":0},{"$f":"SUM(E17:H17)","v":0},null,17]
[null,null,"Altro",null,{"$f":"Scivolamento!$W$45*(1/30-1/100)","v":0},{"$f":"Scivolamento!$X$45*(1/100-1/300)","v":0},{"$f":"Scivolamento!$Y$45*(1/300-1/$O$12)","v":0},{"$f":"IF(Scivolamento!Z45=0,Scivolamento!Y45*((1/$O$12)-(0)),(Scivolamento!Z45-0)*((1/$O$12)-(0)))","v":0},0,null,18]
[null,null,"Totale",null,{"$f":"SUM(E15:E18)","v":0},{"$f":"SUM(F15:F18)","v":0},{"$f":"SUM(G15:G18)","v":0},0,{"$f":"I15+I16+I17+I18","v":0},null,19,null,{"$f":"Cockpit!S72-Tabella!I19","v":0}]
[null,null,null,null,null,null,null,null,null,null,20]
["Crollo","Persone","Popolazione redidente",{"$f":"Crollo!$B$13","v":0},{"$f":"Crollo!$W$10*(1/30-1/100)","v":0},{"$f":"Crollo!$X$10*(1/100-1/300)","v":0},{"$f":"Crollo!$Y$10*(1/300-1/$O$21)","v":0},{"$f":"IF(Crollo!Z10=0,Crollo!Y10*((1/$O$21)-(0)),(Crollo!Z10-0)*((1/$O$21)-(0)))","v":0},{"$f":"SUM(E21:H21)","v":0},null,21,null,null,null,1000]
[null,null,"Occupati",{"$f":"Crollo!$B$20","v":0},{"$f":"Crollo!$W$17*(1/30-1/100)","v":0},{"$f":"Crollo!$X$17*(1/100-1/300)","v":0},{"$f":"Crollo!$Y$17*(1/300-1/$O$21)","v":0},{"$f":"IF(Crollo!Z17=0,Crollo!Y17*((1/$O$21)-(0)),(Crollo!Z17-0)*((1/$O$21)-(0)))","v":0},{"$f":"SUM(E22:H22)","v":0},null,22]
[null,null,"Totale",null,{"$f":"E21+E22","v":0},{"$f":"F21+F22","v":0},{"$f":"G21+G22","v":0},0,{"$f":"I21+I22","v":0},null,23,null,{"$f":"Cockpit!S93-Tabella!I23","v":0}]
[null,"Edifici","Abitazione",null,{"$f":"Crollo!$W$24*(1/30-1/100)","v":0},{"$f":"Crollo!$X$24*(1/100-1/300)","v":0},{"$f":"Crollo!$Y$24*(1/300-1/$O$21)","v":0},{"$f":"IF(Crollo!Z24=0,Crollo!Y24*((1/$O$21)-(0)),(Crollo!Z24-0)*((1/$O$21)-(0)))","v":0},{"$f":"SUM(E24:H24)","v":0},null,24]
[null,null,"Lavoro",null,{"$f":"Crollo!$W$31*(1/30-1/100)","v":0},{"$f":"Crollo!$X$31*(1/100-1/300)","v":0},{"$f":"Crollo!$Y$31*(1/300-1/$O$21)","v":0},{"$f":"IF(Crollo!Z31=0,Crollo!Y31*((1/$O$21)-(0)),(Crollo!Z31-0)*((1/$O$21)-(0)))","v":0},{"$f":"SUM(E25:H25)","v":0},null,25]
[null,null,"Misto",null,{"$f":"Crollo!$W$38*(1/30-1/100)","v":0},{"$f":"Crollo!$X$38*(1/100-1/300)","v":0},{"$f":"Crollo!$Y$38*(1/300-1/$O$21)","v":0},{"$f":"IF(Crollo!Z38=0,Crollo!Y38*((1/$O$21)-(0)),(Crollo!Z38-0)*((1/$O$21)-(0)))","v":0},{"$f":"SUM(E26:H26)","v":0},null,26]
[null,null,"Altro",null,{"$f":"Crollo!$W$45*(1/30-1/100)","v":0},{"$f":"Crollo!$X$45*(1/100-1/300)","v":0},{"$f":"Crollo!$Y$45*(1/300-1/$O$21)","v":0},{"$f":"IF(Crollo!Z45=0,Crollo!Y45*((1/$O$21)-(0)),(Crollo!Z45-0)*((1/$O$21)-(0)))","v":0},0,null,27]
[null,null,"Totale",null,{"$f":"SUM(E24:E27)","v":0},{"$f":"SUM(F24:F27)","v":0},{"$f":"SUM(G24:G27)","v":0},0,{"$f":"I24+I25+I26+I27","v":0},null,28,null,{"$f":"Cockpit!S112-Tabella!I28","v":0}]
[null,null,null,null,null,null,null,null,null,null,29]
["Valanga","Persone","Popolazione redidente",{"$f":"Valanga!$B$13","v":0},{"$f":"Valanga!$W$10*(1/30-1/100)","v":0},{"$f":"Valanga!$X$10*(1/100-1/300)","v":0},{"$f":"Valanga!$Y$10*(1/300-1/$O$30)","v":0},{"$f":"IF(Valanga!Z10=0,Valanga!Y10*((1/$O$30)-(0)),(Valanga!Z10-0)*((1/$O$30)-(0)))","v":0},{"$f":"SUM(E30:H30)","v":0},null,30,null,null,null,1000]
[null,null,"Occupati",{"$f":"Valanga!$B$20","v":0},{"$f":"Valanga!$W$17*(1/30-1/100)","v":0},{"$f":"Valanga!$X$17*(1/100-1/300)","v":0},{"$f":"Valanga!$Y$17*(1/300-1/$O$30)","v":0},{"$f":"IF(Valanga!Z17=0,Valanga!Y17*((1/$O$30)-(0)),(Valanga!Z17-0)*((1/$O$30)-(0)))","v":0},{"$f":"SUM(E31:H31)","v":0},null,31]
[null,null,"Totale",null,{"$f":"E30+E31","v":0},{"$f":"F30+F31","v":0},{"$f":"G30+G31","v":0},0,{"$f":"I30+I31","v":0},null,32,null,{"$f":"Cockpit!S133-Tabella!I32","v":0}]
[null,"Edifici","Abitazione",null,{"$f":"Valanga!$W$24*(1/30-1/100)","v":0},{"$f":"Valanga!$X$24*(1/100-1/300)","v":0},{"$f":"Valanga!$Y$24*(1/300-1/$O$30)","v":0},{"$f":"IF(Valanga!Z24=0,Valanga!Y24*((1/$O$30)-(0)),(Valanga!Z24-0)*((1/$O$30)-(0)))","v":0},{"$f":"SUM(E33:H33)","v":0},null,33]
[null,null,"Lavoro",null,{"$f":"Valanga!$W$31*(1/30-1/100)","v":0},{"$f":"Valanga!$X$31*(1/100-1/300)","v":0},{"$f":"Valanga!$Y$31*(1/300-1/$O$30)","v":0},{"$f":"IF(Valanga!Z31=0,Valanga!Y31*((1/$O$30)-(0)),(Valanga!Z31-0)*((1/$O$30)-(0)))","v":0},{"$f":"SUM(E34:H34)","v":0},null,34]
[null,null,"Misto",null,{"$f":"Valanga!$W$38*(1/30-1/100)","v":0},{"$f":"Valanga!$X$38*(1/100-1/300)","v":0},{"$f":"Valanga!$Y$38*(1/300-1/$O$30)","v":0},{"$f":"IF(Valanga!Z38=0,Valanga!Y38*((1/$O$30)-(0)),(Valanga!Z38-0)*((1/$O$30)-(0)))","v":0},{"$f":"SUM(E35:H35)","v":0},null,35]
[null,null,"Altro",null,{"$f":"Valanga!$W$45*(1/30-1/100)","v":0},{"$f":"Valanga!$X$45*(1/100-1/300)","v":0},{"$f":"Valanga!$Y$45*(1/300-1/$O$30)","v":0},{"$f":"IF(Valanga!Z45=0,Valanga!Y45*((1/$O$30)-(0)),(Valanga!Z45-0)*((1/$O$30)-(0)))","v":0},0,null,36]
[null,null,"Totale",null,{"$f":"SUM(E33:E36)","v":0},{"$f":"SUM(F33:F36)","v":0},{"$f":"SUM(G33:G36)","v":0},0,{"$f":"I33+I34+I35+I36","v":0},null,37,null,{"$f":"Cockpit!S152-Tabella!I37","v":0}]
[null,null,null,null,null,null,null,null,null,null,38]
["Totale",null,null,null,{"$f":"E5+E10+E14+E19+E23+E28+E32+E37","v":0},{"$f":"F5+F10+F14+F19+F23+F28+F32+F37","v":0},0,0,{"$f":"I5+I10+I14+I19+I23+I28+I32+I37","v":0},null,39,null,{"$f":"Cockpit!S170-Tabella!I39","v":0}]
[null,null,null,null,null,null,null,null,null,null,40]
["MAX",null,null,{"$f":"MAX(D3,D4,D12,D13,D21,D22)","v":0},null,null,null,null,{"$f":"MAX(I5,I10,I14,I19,I23,I28,I32,I37,I39)","v":0},null,41]
[null,null,null,null,null,null,null,null,null,null,42]
["MAX_GRAPH",null,null,100,null,null,null,null,100,null,43]
[]
[1,2,3,4,5,6,7,8,9]